[Event "1er tournoi de GMI du C'Chartres Echecs"]
[Site "Chartres, France"]
[Date "2020.10.02"]
[Round "5.4"]
[White "FEDORCHUK, Sergey"]
[Black "DAVID, Alberto"]
[Result "1-0"]
[WhiteElo "2615"]
[BlackElo "2520"]
[PlyCount "71"]
[EventDate "2020.??.??"]
[TimeControl "90+30"]
[WhiteClock "0:03:29"]
[BlackClock "0:02:59"]

1. e4 {[%emt 0:00:00]} c6 {[%emt 0:00:00]} 2. d4 {[%emt 0:00:00]} d5 {[%emt 0:
00:00]} 3. Nd2 {[%emt 0:00:00]} dxe4 {[%emt 0:00:00]} 4. Nxe4 {[%emt 0:00:00]}
Nf6 {[%emt 0:00:00]} 5. Nxf6+ {[%emt 0:00:00]} exf6 {[%emt 0:00:00]} 6. c3 {
[%emt 0:00:00]} Bd6 {[%emt 0:00:00]} 7. Bd3 {[%emt 0:00:00]} O-O {[%emt 0:00:
00]} 8. Qc2 {[%emt 0:00:00]} Re8+ {[%emt 0:00:00]} 9. Ne2 {[%emt 0:00:00]} h5 {
[%emt 0:00:00]} 10. Be3 {[%emt 0:00:00]} Nd7 {[%emt 0:00:00]} 11. O-O-O {
[%emt 0:00:00]} Nf8 {[%emt 0:00:00]} 12. Kb1 {[%emt 0:00:00]} Be6 {[%emt 0:00:
00]} 13. c4 {[%emt 0:00:00]} Rc8 {[%emt 0:00:00]} 14. Nc3 {[%emt 0:00:00]} Ng6
{[%emt 0:00:00]} 15. Rhe1 {[%emt 0:00:00]} Bb4 {[%emt 0:00:00]} 16. f4 {
[%emt 0:00:00]} Bg4 {[%emt 0:00:00]} 17. Rc1 {[%emt 0:00:00]} Bxc3 {[%emt 0:07:
03]} 18. bxc3 {[%emt 0:00:00]} Bd7 {[%emt 0:05:57]} 19. f5 {[%emt 0:00:00]} Ne7
{[%emt 0:00:00]} 20. h3 {[%emt 0:00:00]} b5 {[%emt 0:00:00]} 21. g4 {[%emt 0:
00:00]} bxc4 {[%emt 0:00:00]} 22. Bxc4 {[%emt 0:00:00]} Nd5 {[%emt 0:00:00]}
23. Bd2 {[%emt 0:00:00]} Qc7 {[%emt 0:00:00]} 24. Qd3 {[%emt 0:00:00]} Nb6 {
[%emt 0:00:00]} 25. Ba6 {[%emt 0:00:00]} Rb8 {[%emt 0:00:00]} 26. Ka1 {[%emt 0:
00:00]} Qd6 {[%emt 0:00:00]} 27. Rg1 {[%emt 0:00:00]} Qa3 {[%emt 0:01:05]} 28.
Rc2 {[%emt 0:00:00]} h4 {[%emt 0:00:53]} 29. Bf4 {[%emt 0:00:00]} Rbd8 {
[%emt 0:00:29]} 30. g5 {[%emt 0:00:00]} Qa5 {[%emt 0:00:07]} 31. gxf6 {[%emt 0:
07:46]} Bxf5 {[%emt 0:00:03]} 32. Rxg7+ {[%emt 0:00:46]} Kh8 {[%emt 0:00:01]}
33. Qd2 {[%emt 0:06:56]} Qxa6 {[%emt 0:00:12]} 34. Be5 {[%emt 0:00:02]} Qd3 {
[%emt 0:00:08]} 35. Qh6+ {[%emt 0:00:16]} Bh7 {[%emt 0:00:03]} 36. Rxf7 {
[%emt 0:00:15]} 1-0

[Event "1er tournoi de GMI du C'Chartres Echecs"]
[Site "Chartres, France"]
[Date "2020.10.02"]
[Round "6.4"]
[White "DUBOUE, Peio"]
[Black "FEDORCHUK, Sergey"]
[Result "0-1"]
[WhiteElo "2439"]
[BlackElo "2615"]
[PlyCount "100"]
[EventDate "2020.??.??"]
[TimeControl "90+30"]
[WhiteClock "0:03:23"]
[BlackClock "0:03:26"]

1. e4 {[%emt 0:00:00]} c5 {[%emt 0:00:00]} 2. c3 {[%emt 0:00:00]} d5 {[%emt 0:
00:00]} 3. exd5 {[%emt 0:00:00]} Qxd5 {[%emt 0:00:00]} 4. d4 {[%emt 0:00:00]}
Nf6 {[%emt 0:00:00]} 5. Nf3 {[%emt 0:00:00]} e6 {[%emt 0:00:00]} 6. Be3 {
[%emt 0:00:00]} cxd4 {[%emt 0:00:00]} 7. cxd4 {[%emt 0:00:00]} Bb4+ {[%emt 0:
00:00]} 8. Nc3 {[%emt 0:00:00]} Bd7 {[%emt 0:00:00]} 9. Be2 {[%emt 0:00:00]}
Bb5 {[%emt 0:00:00]} 10. O-O {[%emt 0:00:00]} Bxc3 {[%emt 0:00:00]} 11. bxc3 {
[%emt 0:00:00]} O-O {[%emt 0:00:00]} 12. Rb1 {[%emt 0:00:00]} Bxe2 {[%emt 0:00:
00]} 13. Qxe2 {[%emt 0:00:00]} b6 {[%emt 0:00:00]} 14. c4 {[%emt 0:00:00]} Qe4
{[%emt 0:00:00]} 15. Rfc1 {[%emt 0:00:00]} Nc6 {[%emt 0:00:00]} 16. Ng5 {
[%emt 0:00:00]} Qg6 {[%emt 0:00:00]} 17. Nh3 {[%emt 0:00:00]} Rfd8 {[%emt 0:00:
00]} 18. Qb2 {[%emt 0:00:00]} h6 {[%emt 0:00:00]} 19. Nf4 {[%emt 0:00:00]} Qe4
{[%emt 0:00:00]} 20. Ne2 {[%emt 0:00:00]} Rac8 {[%emt 0:00:00]} 21. Qc2 {
[%emt 0:00:00]} e5 {[%emt 0:00:00]} 22. d5 {[%emt 0:00:00]} Qxc2 {[%emt 0:00:
43]} 23. Rxc2 {[%emt 0:00:00]} Ne7 {[%emt 0:00:13]} 24. Rbc1 {[%emt 0:00:00]}
Nf5 {[%emt 0:00:07]} 25. Ng3 {[%emt 0:00:00]} Nxg3 {[%emt 0:01:21]} 26. hxg3 {
[%emt 0:00:00]} Rd7 {[%emt 0:00:04]} 27. f4 {[%emt 0:00:00]} Ng4 {[%emt 0:03:
54]} 28. Bd2 {[%emt 0:00:00]} exf4 {[%emt 0:05:14]} 29. gxf4 {[%emt 0:00:00]}
Rdc7 {[%emt 0:00:06]} 30. d6 {[%emt 0:00:00]} Rc6 {[%emt 0:00:27]} 31. Bb4 {
[%emt 0:00:00]} Nf6 {[%emt 0:00:15]} 32. Ba3 {[%emt 0:02:27]} Re8 {[%emt 0:01:
31]} 33. c5 {[%emt 0:06:08]} bxc5 {[%emt 0:00:50]} 34. Rxc5 {[%emt 0:01:07]}
Rxd6 {[%emt 0:00:33]} 35. Rc8 {[%emt 0:01:15]} Rd1+ {[%emt 0:02:17]} 36. Rxd1 {
[%emt 0:01:02]} Rxc8 {[%emt 0:00:04]} 37. Be7 {[%emt 0:01:25]} Ne4 {[%emt 0:00:
20]} 38. Rd7 {[%emt 0:01:02]} a6 {[%emt 0:01:05]} 39. Ra7 {[%emt 0:00:33]} Rc1+
{[%emt 0:00:45]} 40. Kh2 {[%emt 0:00:04]} Rc6 {[%emt 0:00:04]} 41. a4 {[%emt 0:
00:18]} Nc3 {[%emt 0:01:16]} 42. a5 {[%emt 0:00:18]} Nd5 {[%emt 0:00:09]} 43.
Bd8 {[%emt 0:01:32]} Nxf4 {[%emt 0:00:47]} 44. Bb6 {[%emt 0:00:54]} Rc2 {
[%emt 0:00:04]} 45. Rxa6 {[%emt 0:00:29]} Rxg2+ {[%emt 0:00:05]} 46. Kh1 {
[%emt 0:00:03]} Ra2 {[%emt 0:00:04]} 47. Ra8+ {[%emt 0:00:25]} Kh7 {[%emt 0:00:
04]} 48. a6 {[%emt 0:01:45]} Nd5 {[%emt 0:00:22]} 49. Bd4 {[%emt 0:01:34]} Nc7
{[%emt 0:00:09]} 50. Rf8 {[%emt 0:00:46]} Ne6 {[%emt 0:00:11]} 0-1

[Event "1er tournoi de GMI du C'Chartres Echecs"]
[Site "Chartres, France"]
[Date "2020.10.03"]
[Round "8.4"]
[White "LAMARD, Guillaume"]
[Black "FEDORCHUK, Sergey"]
[Result "1/2-1/2"]
[WhiteElo "2486"]
[BlackElo "2615"]
[PlyCount "67"]
[EventDate "2020.??.??"]
[TimeControl "90+30"]
[WhiteClock "0:08:03"]
[BlackClock "0:03:43"]

1. d4 {[%emt 0:00:00]} Nf6 {[%emt 0:00:00]} 2. c4 {[%emt 0:00:00]} e6 {[%emt 0:
00:00]} 3. g3 {[%emt 0:00:00]} Bb4+ {[%emt 0:00:00]} 4. Nd2 {[%emt 0:00:00]} c5
{[%emt 0:00:00]} 5. a3 {[%emt 0:00:00]} Bxd2+ {[%emt 0:00:00]} 6. Qxd2 {
[%emt 0:00:00]} cxd4 {[%emt 0:00:00]} 7. Nf3 {[%emt 0:00:00]} b6 {[%emt 0:00:
00]} 8. Bg2 {[%emt 0:00:00]} Bb7 {[%emt 0:00:00]} 9. O-O {[%emt 0:00:00]} Bxf3
{[%emt 0:00:00]} 10. exf3 {[%emt 0:00:00]} Nc6 {[%emt 0:00:00]} 11. b3 {
[%emt 0:00:00]} Rc8 {[%emt 0:00:00]} 12. f4 {[%emt 0:00:00]} d5 {[%emt 0:00:00]
} 13. cxd5 {[%emt 0:00:00]} Nxd5 {[%emt 0:00:00]} 14. Bb2 {[%emt 0:00:00]} O-O
{[%emt 0:00:00]} 15. Rfd1 {[%emt 0:00:00]} Nc3 {[%emt 0:00:00]} 16. Bxc3 {
[%emt 0:00:00]} dxc3 {[%emt 0:00:00]} 17. Qxc3 {[%emt 0:00:00]} Na5 {[%emt 0:
00:00]} 18. Qf3 {[%emt 0:00:00]} Qf6 {[%emt 0:00:00]} 19. b4 {[%emt 0:00:00]}
Rc3 {[%emt 0:00:00]} 20. Qe4 {[%emt 0:00:00]} Nc4 {[%emt 0:00:00]} 21. a4 {
[%emt 0:00:00]} g6 {[%emt 0:00:00]} 22. Bf1 {[%emt 0:00:00]} Rc8 {[%emt 0:00:
00]} 23. Rd4 {[%emt 0:00:00]} a5 {[%emt 0:03:31]} 24. bxa5 {[%emt 0:00:00]}
Nxa5 {[%emt 0:00:08]} 25. Rb1 {[%emt 0:00:00]} Nb3 {[%emt 0:02:15]} 26. Rd6 {
[%emt 0:00:00]} Qe7 {[%emt 0:01:25]} 27. Rbd1 {[%emt 0:00:00]} Rc1 {[%emt 0:00:
49]} 28. Rxc1 {[%emt 0:00:00]} Rxc1 {[%emt 0:00:05]} 29. Qd3 {[%emt 0:00:00]}
Qc7 {[%emt 0:02:43]} 30. Rd7 {[%emt 0:05:43]} Qc3 {[%emt 0:01:16]} 31. Qxc3 {
[%emt 0:02:18]} Rxc3 {[%emt 0:00:03]} 32. Rd6 {[%emt 0:00:11]} Nc5 {[%emt 0:01:
24]} 33. Bb5 {[%emt 0:00:17]} Rb3 {[%emt 0:00:38]} 34. Rc6 {[%emt 0:01:58]}
1/2-1/2